bitfinex/quotes_SOLUSD_20260211
["timestamp","ask_amount","ask_price","bid_price","bid_amount"]
[1770820983392,19.66013441,80.99,80.959,1.16215877]
[1770820983773,19.66013441,80.98,80.945,1.16215877]
[1770820983966,19.66013441,80.95,80.916,1.16215877]
[1770820984192,19.66013441,80.96,80.921,1.16215877]
[1770820984488,19.66013441,80.95,80.917,42.34]
[1770820984695,19.66013441,80.94,80.917,42.34]
[1770820984891,19.66013441,80.94,80.906,1.16215877]
[1770820985070,19.66013441,80.93,80.897,42.34]
[1770820985269,19.66013441,80.93,80.897,1.16215877]
[1770820985498,1.116566,80.956,80.911,1.16215877]
[1770820985682,19.66013441,80.94,80.911,1.16215877]
[1770820985990,19.66013441,80.94,80.898,42.32]
[1770820985991,19.66013441,80.93,80.9,1.16215877]
[1770820986395,19.66013441,80.94,80.901,1.16215877]
[1770820986589,1.116566,80.956,80.911,1.16215877]
[1770820986790,30.87700663,80.967,80.911,1.16215877]
[1770820987089,19.66013441,80.96,80.921,1.16215877]
[1770820987390,19.66013441,80.97,80.931,1.16215877]
[1770820987973,19.66013441,80.96,80.931,12.35614036]
[1770820988178,19.66013441,80.96,80.932,1.16215877]
[1770820988374,19.66013441,80.97,80.932,1.16215877]
[1770820988668,19.66013441,80.96,80.932,1.16215877]
[1770820988886,19.66013441,80.96,80.932,13.51821076]
[1770820989085,43.22641998,80.969,80.933,1.16215877]
[1770820989290,12.35040571,80.969,80.933,1.16215877]
[1770820989479,19.66013441,80.97,80.941,1.16215877]
[1770820989685,19.66013441,80.96,80.931,42.32]
[1770820989884,12.35193122,80.959,80.931,42.32]
[1770820990187,12.35193122,80.959,80.926,12.35687799]
[1770820990388,19.66013441,80.96,80.931,1.16215877]
[1770820990588,19.66013441,80.94,80.903,1.16215877]
[1770820990893,12.57165498,80.98,80.931,1.16215877]
[1770820991193,12.57165498,80.98,80.941,1.16215877]
[1770820991493,12.57165498,80.98,80.904,203.94541678]
[1770820991494,12.34608408,80.998,80.961,1.16215877]
[1770820991867,12.57165498,80.99,80.961,1.16215877]
[1770820992190,12.57165498,81.0,80.963,1.16215877]
[1770820992382,12.57165498,81.0,80.931,49.42468929]
[1770820992383,1.116566,80.999,80.935,1.16215877]
[1770820992699,12.57165498,81.01,80.97,12.57165498]
[1770820992881,12.57165498,81.01,80.935,1.16215877]
[1770820992882,12.57165498,81.0,80.967,42.32]
[1770820993072,12.57165498,80.99,80.967,42.32]
[1770820993273,12.57165498,80.99,80.957,42.32]
[1770820993674,1.116566,80.999,80.96,12.57165498]
[1770820994078,24.91581002,81.01,80.97,12.57165498]
[1770820994283,12.57165498,81.02,80.98,12.57165498]
[1770820994483,12.57165498,81.02,80.981,42.32]
[1770820994678,12.57165498,81.01,80.981,42.32]
[1770820994878,12.57165498,81.01,80.97,12.57165498]
[1770820995091,12.57165498,81.02,80.981,1.16215877]
[1770820995492,12.57165498,81.01,80.981,1.16215877]
[1770820995794,12.57165498,81.02,80.981,1.16215877]
[1770820995998,12.57165498,80.99,80.957,1.16215877]
[1770820996493,1.116566,81.024,80.971,1.16215877]
[1770820996686,1.116566,81.024,80.95,105.00308831]
[1770820996687,12.34126053,81.029,80.981,1.16215877]
[1770820996891,12.57165498,81.02,80.991,1.16215877]
[1770820997093,13.45782653,81.029,80.991,1.16215877]
[1770820997300,13.45782653,81.029,80.992,42.3]
[1770820997494,12.57165498,81.02,80.99,42.3]
[1770820998092,12.34278379,81.019,80.991,12.3470509]
[1770820998394,12.34278379,81.019,80.992,1.16215877]
[1770820998801,12.34141284,81.028,80.992,1.16215877]
[1770820999000,12.57165498,81.02,80.992,1.16215877]
[1770820999214,12.34141284,81.028,80.992,1.16215877]
[1770820999380,43.19494495,81.028,80.994,1.16215877]
[1770820999580,12.34141284,81.028,80.994,1.16215877]
[1770820999892,0.2,81.03,81.001,1.16215877]
[1770821000287,12.57165498,81.05,81.011,0.94618437]
[1770821000487,24.90977041,81.05,81.011,0.94618437]
[1770821000806,12.57165498,81.1,81.041,0.94618437]
[1770821000986,12.57165498,81.08,81.043,0.94618437]
[1770821001179,12.57165498,81.1,81.042,0.94618437]
[1770821001382,12.57165498,81.1,81.061,0.94618437]
[1770821001600,12.33093411,81.097,81.061,0.94618437]
[1770821001904,12.57165498,81.11,81.07,12.57165498]
[1770821002107,24.89918901,81.12,81.081,0.94618437]
[1770821002313,12.57165498,81.11,81.082,0.94618437]
[1770821002513,16.98247993,81.143,81.082,0.94618437]
[1770821002514,12.57165498,81.13,81.091,0.94618437]
[1770821002682,0.95849771,81.141,81.082,12.33319355]
[1770821002683,12.57165498,81.14,81.101,0.94618437]
[1770821002885,12.57165498,81.13,81.101,0.94618437]
[1770821003081,12.57165498,81.15,81.111,0.94618437]
[1770821003295,12.57165498,81.14,81.104,42.28]
[1770821003494,0.95849771,81.166,81.111,0.94618437]
[1770821003714,12.57165498,81.12,81.087,0.94618437]
[1770821003881,12.57165498,81.12,81.089,42.28]
[1770821004084,12.57165498,81.13,81.09,12.57165498]
[1770821004393,12.32452951,81.139,81.102,0.94618437]
[1770821004585,12.32452951,81.139,81.101,12.33030418]
[1770821004586,0.95849771,81.165,81.121,0.94618437]
[1770821004785,0.95849771,81.165,81.088,98.65712134]
[1770821004786,0.95849771,81.129,81.061,49.3452924]
[1770821004986,141.67970528,81.169,81.054,61.68727021]
[1770821004987,12.57165498,81.11,81.054,61.68727021]
[1770821005182,12.57165498,81.12,81.08,12.57165498]
[1770821005401,12.57165498,81.1,81.06,12.57165498]
[1770821005591,12.57165498,81.09,81.061,42.26]
[1770821005798,12.57165498,81.11,81.07,12.57165498]
[1770821005984,12.57165498,81.1,81.062,42.26]
[1770821006191,13.18276576,81.099,81.063,12.33608428]
[1770821006510,30.82149367,81.113,81.063,12.33608428]
[1770821006511,24.90072767,81.11,81.07,12.57165498]
[1770821006815,40.34,81.137,81.063,12.33608428]
[1770821006816,12.32615359,81.129,81.072,0.26078928]
[1770821006999,0.85204483,81.141,81.1,12.57165498]
[1770821007186,0.85204483,81.165,81.12,12.57165498]
[1770821007383,0.85204483,81.149,81.121,42.26]
[1770821007589,0.85204483,81.149,81.122,42.26]
[1770821008185,0.85204483,81.149,81.11,12.57165498]
[1770821008387,0.85204483,81.149,81.111,54.56878401]
[1770821008589,0.85204483,81.149,81.112,42.24]
[1770821008814,0.3648695,81.17,81.13,12.57165498]
[1770821008815,12.93652448,81.17,81.13,12.57165498]
[1770821009015,12.57165498,81.16,81.121,0.24084776]
[1770821009400,0.85204483,81.159,81.12,12.57165498]
[1770821009596,0.85204483,81.159,81.112,42.24]
[1770821009597,0.85204483,81.139,81.116,42.26]
[1770821009795,12.57165498,81.16,81.12,12.57165498]
[1770821010021,13.42369981,81.16,81.116,42.26]
[1770821010192,13.42369981,81.14,81.1,12.57165498]
[1770821010514,0.3648695,81.17,81.13,12.57165498]
[1770821010515,0.85204483,81.168,81.13,12.57165498]
[1770821010720,0.85204483,81.168,81.131,42.26]
[1770821010893,0.3648695,81.17,81.14,12.57165498]
[1770821011298,0.85204483,81.169,81.132,42.24]
[1770821011606,0.85204483,81.149,81.132,40.78356824]
[1770821011797,0.85204483,81.149,81.114,42.24]
[1770821012323,12.57165498,81.15,81.108,12.32918117]
[1770821012324,13.17520744,81.148,81.108,12.32918117]
[1770821012618,12.57165498,81.13,81.112,42.24]
[1770821012812,43.13106915,81.148,81.101,42.24]
[1770821012813,12.57165498,81.14,81.101,42.24]
[1770821012997,0.85204483,81.155,81.12,12.57165498]
[1770821013196,12.57165498,81.15,81.11,12.57165498]
[1770821013408,0.85204483,81.149,81.11,12.57165498]
[1770821013615,0.85204483,81.149,81.101,42.24]
[1770821013616,0.85204483,81.129,81.101,42.24]
[1770821014302,0.85204483,81.154,81.102,0.19296393]
[1770821014612,0.85204483,81.166,81.13,12.57165498]
[1770821014816,12.57165498,81.16,81.131,42.24]
[1770821015113,0.3648695,81.17,81.14,12.57165498]
[1770821015310,0.3648695,81.17,81.132,0.18371462]
[1770821015513,0.3648695,81.17,81.14,12.57165498]
[1770821015717,12.31997437,81.169,81.131,42.24]
[1770821016320,0.3648695,81.17,81.131,42.24]
[1770821016321,0.3648695,81.17,81.141,43.13479005]
[1770821016502,0.3648695,81.17,81.15,12.57165498]
[1770821016707,0.3648695,81.17,81.133,12.32534853]
[1770821016898,0.85204483,81.15,81.11,12.57165498]
[1770821017104,0.85204483,81.139,81.109,42.24]
[1770821017426,0.85204483,81.129,81.109,42.24]
[1770821017800,0.85204483,81.119,81.071,12.33486696]
[1770821017997,0.85204483,81.119,81.08,12.57165498]
[1770821018221,0.85204483,81.109,81.072,42.26]
[1770821018420,12.57165498,81.11,81.073,43.17096936]
[1770821018421,0.85204483,81.107,81.073,43.17096936]
[1770821019025,0.85204483,81.1,81.072,42.26]
[1770821019222,0.85204483,81.126,81.09,12.57165498]
[1770821019402,0.85204483,81.126,81.085,42.26]
[1770821019613,0.85204483,81.109,81.085,42.26]
[1770821020315,0.85204483,81.119,81.085,42.26]
[1770821020525,0.85204483,81.119,81.086,12.33258515]
[1770821020826,0.85204483,81.118,81.086,12.33258515]
[1770821021504,13.17976494,81.118,81.086,12.33258515]
[1770821021699,0.85204483,81.117,81.086,12.33258515]
[1770821021905,12.57165498,81.11,81.086,12.33258515]
[1770821022105,0.85204483,81.117,81.086,12.33258515]
[1770821022305,12.57165498,81.1,81.085,42.26]
[1770821022923,0.85204483,81.109,81.085,42.26]
[1770821023118,12.32924002,81.108,81.085,42.26]
[1770821023326,12.53140325,81.09,81.053,42.3]
[1770821023498,0.85204483,81.107,81.07,12.53140325]
[1770821023704,0.85204483,81.107,81.06,12.53140325]
[1770821024011,0.85204483,81.119,81.08,12.53140325]
[1770821024409,12.53140325,81.15,81.11,12.53140325]
[1770821024609,0.85204483,81.169,81.13,12.53140325]
[1770821024838,55.69333045,81.214,81.111,42.41686777]
[1770821024839,12.53140325,81.19,81.15,12.53140325]
[1770821025005,0.85204483,81.179,81.113,0.09686777]
[1770821025208,0.85204483,81.149,81.11,12.53140325]
[1770821025405,0.85204483,81.149,81.114,42.3]
[1770821025708,12.53140325,81.14,81.106,12.32954405]
[1770821025912,12.53140325,81.14,81.107,42.3]
[1770821026309,0.85204483,81.139,81.107,42.3]
[1770821026511,12.53140325,81.15,81.11,12.53140325]
[1770821026716,0.85204483,81.159,81.12,12.53140325]
[1770821026918,0.85204483,81.159,81.121,43.14542473]
[1770821027315,12.53140325,81.18,81.14,12.53140325]
[1770821027626,0.85204483,81.179,81.141,42.3]
[1770821027829,0.85204483,81.169,81.141,42.3]
[1770821028318,0.85204483,81.196,81.15,12.53140325]
[1770821028522,0.85204483,81.196,81.16,12.53140325]
[1770821028919,13.38344808,81.21,81.17,12.53140325]
[1770821029116,0.85204483,81.199,81.15,42.28]
[1770821029311,0.85204483,81.199,81.15,12.53140325]
[1770821029517,0.85204483,81.169,81.127,43.14223377]
[1770821029718,0.85204483,81.159,81.128,42.28]
[1770821030552,0.80615291,81.139,81.09,12.53140325]
[1770821030844,0.80615291,81.139,81.086,12.33258515]
[1770821030845,0.80615291,81.119,81.086,12.33258515]
[1770821031023,12.53140325,81.11,81.091,42.3]
[1770821031223,12.32772011,81.118,81.03,49.36439865]
[1770821031224,0.80615291,81.099,81.06,12.53140325]
[1770821031422,0.80615291,81.089,81.05,12.53140325]
[1770821031736,12.53140325,81.08,81.051,42.28]
[1770821032322,0.80615291,81.082,81.05,12.53140325]
[1770821032536,0.80615291,81.079,81.048,42.3]
[1770821032714,0.80615291,81.069,81.034,12.3404895]
[1770821032919,13.33755616,81.05,81.02,0.1]
[1770821033122,0.80615291,81.05,81.02,12.63140325]
[1770821033630,0.80615291,81.05,81.02,0.1]
[1770821033848,0.80615291,81.05,81.02,12.63140325]
[1770821034344,49.30517274,81.128,81.031,0.76655252]
[1770821034547,49.30517274,81.128,81.03,12.53140325]
[1770821034548,12.53140325,81.09,81.05,12.53140325]
[1770821034721,12.53140325,81.11,81.07,12.53140325]
[1770821034915,12.53140325,81.09,81.044,12.33897635]
[1770821035120,12.33212889,81.089,81.044,12.33897635]
[1770821035322,12.33212889,81.089,81.05,12.53140325]
[1770821035522,12.53140325,81.1,81.06,12.53140325]
[1770821036123,12.53140325,81.09,81.06,12.53140325]
[1770821036326,12.53140325,81.1,81.06,12.53140325]
[1770821036518,13.32616536,81.1,81.07,12.53140325]
[1770821036838,12.32848002,81.113,81.08,12.53140325]
[1770821036839,0.79476211,81.113,81.08,12.53140325]
[1770821037047,12.53140325,81.13,81.091,43.16138659]
[1770821037248,0.79476211,81.129,81.1,12.53140325]
[1770821037545,0.79476211,81.129,81.091,43.16138659]
[1770821037546,0.79476211,81.164,81.12,12.53140325]
[1770821037846,0.79476211,81.188,81.14,12.53140325]
[1770821038028,12.53140325,81.17,81.13,12.53140325]
[1770821038230,0.79476211,81.159,81.12,12.53140325]
[1770821038545,110.83956606,81.199,81.12,12.53140325]
[1770821038546,0.79476211,81.218,81.151,0.76655252]
[1770821038845,12.53140325,81.18,81.145,42.3]
[1770821039042,0.79476211,81.189,81.151,12.32270705]
[1770821039246,0.79476211,81.179,81.128,30.81517367]
[1770821039422,0.79476211,81.159,81.129,12.32604863]
[1770821039625,12.53140325,81.15,81.129,12.32604863]
[1770821039825,0.79476211,81.149,81.113,42.3]
[1770821040124,0.79476211,81.119,81.067,43.17416457]
[1770821040340,0.79476211,81.119,81.08,12.53140325]
[1770821040341,12.53140325,81.11,81.08,12.53140325]
[1770821040538,12.53140325,81.11,81.07,12.53140325]
[1770821040734,12.53140325,81.12,81.081,0.76655252]
[1770821041042,0.79476211,81.129,81.091,12.33182474]
[1770821041349,0.79476211,81.181,81.121,0.76655252]
[1770821041538,0.79476211,81.181,81.091,240.47058243]
[1770821041539,12.53140325,81.16,81.122,42.3]
[1770821041719,240.0856921,81.221,81.14,12.53140325]
[1770821041720,12.53140325,81.17,81.14,12.53140325]
[1770821041918,0.79476211,81.179,81.122,42.3]
[1770821041919,0.79476211,81.179,81.15,12.53140325]
[1770821042119,0.79476211,81.192,81.16,12.53140325]
[1770821042349,0.79476211,81.199,81.121,0.76655252]
[1770821042545,0.79476211,81.199,81.16,12.53140325]
[1770821042723,0.79476211,81.199,81.17,12.53140325]
[1770821042923,0.79476211,81.189,81.15,12.53140325]
[1770821043151,0.79476211,81.232,81.181,0.76325879]
[1770821043447,0.2,81.24,81.18,12.53140325]
[1770821043448,12.53140325,81.22,81.18,12.53140325]
[1770821043642,0.79476211,81.229,81.19,12.53140325]
[1770821043945,12.53140325,81.22,81.182,42.28]
[1770821044240,12.53140325,81.22,81.161,43.12416061]
[1770821044241,0.79476211,81.209,81.17,12.53140325]
[1770821044423,0.79476211,81.219,81.18,12.53140325]
[1770821045137,12.53140325,81.21,81.172,12.31951904]
[1770821045336,0.79476211,81.201,81.15,12.53140325]
[1770821045520,12.53140325,81.18,81.144,42.26]
[1770821045727,12.53140325,81.19,81.15,12.53140325]
[1770821045927,12.53140325,81.18,81.144,42.26]
[1770821046348,0.79476211,81.201,81.161,0.74386253]
[1770821046553,12.53140325,81.2,81.161,0.74386253]
[1770821046734,12.53140325,81.2,81.15,12.53140325]
[1770821046934,13.32616536,81.2,81.15,12.53140325]
[1770821047131,12.53140325,81.18,81.149,43.13053764]
[1770821047330,12.53140325,81.16,81.121,0.73754507]
[1770821047747,12.53140325,81.18,81.141,0.73130016]
[1770821047948,12.31546183,81.199,81.13,12.53140325]
[1770821047949,12.53140325,81.17,81.13,12.53140325]
[1770821048149,12.53140325,81.18,81.14,12.53140325]
[1770821048459,0.79476211,81.179,81.134,0.73130016]
[1770821048748,0.79476211,81.179,81.119,141.76703361]
[1770821048749,12.53140325,81.17,81.127,0.72512699]
[1770821048952,12.53140325,81.2,81.151,0.72512699]
[1770821049128,12.53140325,81.19,81.152,43.12894321]
[1770821049542,12.53140325,81.21,81.17,12.53140325]
[1770821049839,0.79476211,81.212,81.18,12.53140325]
[1770821050038,0.79476211,81.225,81.172,0.71902472]
[1770821050338,12.53140325,81.23,81.191,0.71902472]
[1770821050541,0.79476211,81.239,81.2,12.53140325]
[1770821050745,12.53140325,81.23,81.191,0.71902472]
[1770821050951,0.79476211,81.219,81.17,12.53140325]
[1770821051260,0.79476211,81.219,81.181,12.31815326]
[1770821051550,0.2,81.24,81.181,12.31815326]
[1770821051551,0.79476211,81.229,81.19,12.53140325]
[1770821051754,0.79476211,81.229,81.182,42.91299254]
[1770821051755,0.2,81.24,81.22,12.53140325]
[1770821051933,1e-08,81.24,81.22,12.53140325]
[1770821052133,1e-08,81.24,81.211,0.70702965]
[1770821052375,1e-08,81.25,81.231,0.70702965]
[1770821052556,0.79476211,81.286,81.241,0.70113524]
[1770821052859,6.32984651,81.3,81.26,12.53140325]
[1770821052860,18.86124976,81.3,81.26,12.53140325]
[1770821053350,19.06124976,81.3,81.26,12.53140325]
[1770821053542,12.53140325,81.29,81.251,0.76655252]
[1770821053747,12.30027429,81.299,81.241,12.30905577]
[1770821053748,12.53140325,81.28,81.241,12.30905577]
[1770821053934,12.53140325,81.27,81.241,12.30905577]
[1770821054132,12.53140325,81.28,81.241,13.07560829]
[1770821054333,12.53140325,81.28,81.241,0.76655252]
[1770821054541,12.30027429,81.299,81.26,12.53140325]
[1770821054734,12.30027429,81.299,81.251,0.76655252]
[1770821054735,12.53140325,81.29,81.251,0.76655252]
[1770821054938,0.79476211,81.289,81.25,19.46014214]
[1770821055341,13.09670089,81.288,81.251,12.30754083]
[1770821055745,0.79476211,81.288,81.251,12.30754083]
[1770821055960,20.25490425,81.29,81.252,0.76655252]
[1770821056254,0.79476211,81.279,81.241,12.30897602]
[1770821056456,19.46014214,81.27,81.23,19.46014214]
[1770821056632,0.79476211,81.269,81.23,19.46014214]
[1770821056837,0.79476211,81.269,81.24,19.46014214]
[1770821057058,0.79476211,81.269,81.23,19.46014214]
[1770821057259,12.3007282,81.296,81.261,12.30602626]
[1770821057561,6.52984651,81.3,81.261,12.30602626]
[1770821057562,6.52984651,81.3,81.28,19.46014214]
[1770821057856,6.52984651,81.3,81.28,20.22669466]
[1770821058358,0.79476211,81.289,81.236,0.76655252]
[1770821058545,19.46014214,81.27,81.236,0.76655252]
[1770821058746,0.79476211,81.269,81.23,19.46014214]
[1770821058948,0.79476211,81.269,81.24,19.46014214]
[1770821059340,19.66014214,81.3,81.261,0.76655252]
[1770821059543,19.46014214,81.3,81.27,19.46014214]
[1770821059750,45.5,81.341,81.265,0.76655252]
[1770821059751,0.79476211,81.308,81.28,19.46014214]
[1770821060267,19.66014214,81.31,81.28,19.46014214]
[1770821060440,0.2,81.31,81.28,19.46014214]
[1770821060760,0.2,81.31,81.29,19.46014214]
[1770821060947,0.2,81.31,81.28,19.46014214]
[1770821061138,0.2,81.31,81.281,0.69213644]
[1770821061338,0.2,81.31,81.282,12.30284687]
[1770821061557,0.2,81.31,81.281,0.69213644]
[1770821061558,0.2,81.31,81.266,0.69213644]
[1770821061867,0.2,81.32,81.3,19.46014214]
[1770821062245,0.2,81.32,81.284,42.14]
[1770821062246,19.66014214,81.32,81.284,42.14]
[1770821062447,0.2,81.32,81.29,20.15227858]
[1770821062769,12.2972491,81.319,81.29,20.15227858]
[1770821063064,0.2,81.32,81.29,20.15227858]
[1770821063362,0.72822801,81.319,81.281,42.12]
[1770821063543,0.72822801,81.319,81.29,19.46014214]
[1770821063745,19.46014214,81.31,81.282,12.30284687]
[1770821063970,19.46014214,81.31,81.256,0.69213644]
[1770821063971,0.72822801,81.309,81.256,0.69213644]
[1770821064262,19.66014214,81.32,81.28,20.15227858]
[1770821064441,19.66014214,81.32,81.243,190.78566766]
[1770821064442,0.2,81.32,81.3,19.46014214]
[1770821064635,0.2,81.32,81.31,19.46014214]
[1770821064879,0.2462089,81.33,81.304,0.69213644]
[1770821065045,19.46014214,81.34,81.261,0.69213644]
[1770821065360,19.46014214,81.34,81.301,0.69213644]
[1770821065558,12.2942254,81.339,81.302,12.29982042]
[1770821065869,0.72822801,81.33,81.3,19.46014214]
[1770821066064,0.72822801,81.358,81.32,19.46014214]
[1770821066266,12.28757848,81.383,81.33,19.46014214]
[1770821066267,0.68256677,81.37,81.33,19.46014214]
[1770821066476,0.68256677,81.359,81.32,19.46014214]
[1770821066756,19.46014214,81.35,81.32,19.46014214]
[1770821066961,0.68256677,81.329,81.28,19.46014214]
[1770821067152,19.46014214,81.3,81.259,0.7081977]
[1770821067359,0.68256677,81.309,81.27,19.46014214]
[1770821067546,0.68256677,81.309,81.28,19.46014214]
[1770821067737,0.68256677,81.299,81.271,12.30451206]
[1770821067940,0.68256677,81.314,81.28,19.46014214]
[1770821068141,0.68256677,81.344,81.301,0.7081977]
[1770821068342,0.68256677,81.357,81.32,19.46014214]
[1770821068541,0.68256677,81.339,81.31,19.46014214]
[1770821068957,19.46014214,81.35,81.31,19.46014214]
[1770821069160,19.46014214,81.35,81.281,42.1]
[1770821069161,19.46014214,81.35,81.311,0.7081977]
[1770821069550,19.46014214,81.34,81.3,19.46014214]
[1770821069757,20.14270891,81.33,81.291,12.30148478]
[1770821070065,0.68256677,81.309,81.28,19.46014214]
[1770821070376,0.68256677,81.299,81.263,12.30570989]
[1770821070546,0.68256677,81.299,81.263,43.07001836]
[1770821070746,0.68256677,81.299,81.27,19.46014214]
[1770821070965,0.68256677,81.299,81.263,12.30570989]
[1770821071172,19.46014214,81.28,81.244,0.7081977]
[1770821071368,0.68256677,81.292,81.25,19.46014214]
[1770821071670,0.68256677,81.289,81.251,12.30754083]
[1770821072173,0.68256677,81.299,81.26,19.46014214]
[1770821072344,0.68256677,81.299,81.252,0.7081977]
[1770821072345,19.46014214,81.28,81.252,0.7081977]
[1770821072547,19.46014214,81.28,81.251,12.30754083]
[1770821073084,0.68256677,81.287,81.251,43.0763929]
[1770821073372,0.68256677,81.287,81.238,42.08]
[1770821073373,19.46014214,81.27,81.238,42.08]
[1770821073548,19.46014214,81.27,81.234,43.08540758]
[1770821073748,19.46014214,81.27,81.235,0.7081977]
[1770821074561,0.68256677,81.259,81.22,19.46014214]
[1770821074765,0.68256677,81.249,81.212,42.1]
[1770821075578,19.46014214,81.23,81.212,42.1]
[1770821075770,12.30738935,81.252,81.213,12.31329959]
[1770821076077,19.46014214,81.25,81.213,12.31329959]
[1770821076265,4.61729252,81.284,81.213,12.31329959]
[1770821076266,19.46014214,81.27,81.23,19.46014214]
[1770821076449,19.46014214,81.27,81.231,0.7081977]
[1770821076654,31.76486672,81.27,81.231,0.7081977]
[1770821076877,12.48135154,81.27,81.231,0.7081977]
[1770821077067,12.48135154,81.26,81.218,42.12]
[1770821077273,12.48135154,81.24,81.213,12.31329959]
[1770821077457,12.48135154,81.23,81.203,12.31481595]
[1770821077658,12.48135154,81.25,81.22,12.48135154]
[1770821077985,0.68256677,81.275,81.23,13.18954924]
[1770821078186,12.48135154,81.27,81.23,13.18954924]
[1770821078351,12.48135154,81.28,81.25,12.48135154]
[1770821078553,12.48135154,81.29,81.251,0.7081977]
[1770821078773,0.68256677,81.3,81.251,0.7081977]
[1770821078956,12.48135154,81.3,81.26,12.48135154]
[1770821079157,12.48135154,81.29,81.26,12.48135154]
[1770821079362,12.48135154,81.31,81.28,12.48135154]
[1770821079559,0.68256677,81.338,81.29,12.48135154]
[1770821079759,49.14632341,81.39,81.27,0.7081977]
[1770821079760,0.68256677,81.357,81.31,12.48135154]
[1770821079957,12.48135154,81.35,81.32,12.48135154]
[1770821080172,0.68256677,81.329,81.271,12.30451206]
[1770821080481,12.48135154,81.31,81.28,12.48135154]
[1770821080778,12.48135154,81.31,81.271,43.06579222]
[1770821081174,0.68256677,81.317,81.28,12.48135154]
[1770821081376,12.48135154,81.31,81.272,0.7081977]
[1770821081582,12.48135154,81.3,81.262,12.30587482]
[1770821081764,13.16391831,81.3,81.262,12.30587482]
[1770821081963,12.30027429,81.299,81.262,12.30587482]
[1770821082279,13.16391831,81.3,81.262,12.30587482]
[1770821082280,12.29785402,81.315,81.27,12.48135154]
[1770821082456,12.48135154,81.31,81.27,12.48135154]
[1770821082778,0.68256677,81.315,81.28,12.48135154]
[1770821082964,30.73761421,81.334,81.262,12.30587482]
[1770821082965,0.68256677,81.328,81.29,12.48135154]
[1770821083284,0.68256677,81.364,81.31,13.18954924]
[1770821083477,12.48135154,81.36,81.32,12.48135154]
[1770821083784,12.48135154,81.36,81.321,12.29694666]
[1770821084076,12.48135154,81.35,81.32,12.48135154]
[1770821084273,12.48135154,81.35,81.314,43.04301841]
[1770821084674,0.68256677,81.34,81.294,0.7081977]
[1770821084984,0.68256677,81.365,81.33,12.45226873]
[1770821085190,12.97286358,81.365,81.33,12.45226873]
[1770821085360,12.45226873,81.36,81.304,0.7081977]
[1770821085566,4.61729252,81.356,81.28,12.45226873]
[1770821085779,12.45226873,81.32,81.281,43.06049384]
[1770821087269,12.45226873,81.33,81.29,12.45226873]
[1770821087873,12.45226873,81.31,81.265,43.06897187]
[1770821088075,12.45226873,81.31,81.27,12.45226873]
[1770821088378,12.45226873,81.31,81.28,12.45226873]
[1770821088580,12.45226873,81.3,81.265,43.06897187]
[1770821088777,12.45226873,81.31,81.27,12.45226873]
[1770821088981,0.68256677,81.323,81.28,12.45226873]
[1770821089178,12.19527853,81.32,81.28,12.45226873]
[1770821089380,61.46064082,81.353,81.269,42.08]
[1770821089381,12.45226873,81.31,81.269,42.08]
[1770821089586,12.45226873,81.31,81.27,12.45226873]
[1770821089910,12.30027429,81.299,81.269,54.38469584]
[1770821090068,12.45226873,81.3,81.269,54.38469584]
[1770821090069,12.45226873,81.31,81.27,12.45226873]
[1770821090264,12.45226873,81.3,81.269,43.06673302]
[1770821090667,12.45226873,81.3,81.27,12.45226873]
[1770821090867,12.45226873,81.3,81.269,43.06673302]
[1770821090868,12.45226873,81.3,81.269,12.30469584]
[1770821091067,12.45226873,81.29,81.265,42.08]
[1770821091384,0.60441265,81.279,81.227,0.65411215]
[1770821091586,12.45226873,81.25,81.22,42.1]
[1770821092100,12.45226873,81.27,81.231,0.65411215]
[1770821092265,12.45226873,81.26,81.231,0.65411215]
[1770821092587,12.45226873,81.26,81.22,54.41219933]
[1770821092588,12.45226873,81.28,81.25,12.45226873]
[1770821092890,12.45226873,81.28,81.246,42.1]
[1770821093076,12.45226873,81.28,81.25,12.45226873]
[1770821093266,12.45226873,81.28,81.246,42.75411215]
[1770821093473,12.30254416,81.284,81.22,43.09279524]
[1770821093474,12.45226873,81.26,81.233,0.65411215]
[1770821093785,12.45226873,81.25,81.227,42.08]
[1770821094171,13.05668138,81.26,81.228,12.31102575]
[1770821094389,12.45226873,81.25,81.228,12.31102575]
[1770821095288,12.45226873,81.25,81.227,42.08]
[1770821095472,12.45226873,81.24,81.208,12.31405772]
[1770821095986,12.45226873,81.25,81.22,12.45226873]
[1770821096194,0.60441265,81.252,81.22,12.45226873]
[1770821096391,12.45226873,81.26,81.221,0.65411215]
[1770821097085,12.45226873,81.26,81.23,12.45226873]
[1770821097270,0.60441265,81.264,81.23,12.45226873]
[1770821097484,0.60441265,81.264,81.221,0.65411215]
[1770821097485,12.45226873,81.26,81.221,0.65411215]
[1770821097685,12.45226873,81.26,81.23,12.45226873]
[1770821098089,12.45226873,81.25,81.221,0.65411215]
[1770821098390,12.30632914,81.259,81.222,12.31193518]
[1770821098794,12.45226873,81.25,81.222,12.31193518]
[1770821099093,0.60441265,81.258,81.222,12.31193518]